[Event "II Zicosur 2016"]
[Site "Antofagasta"]
[Date "2016.01.10"]
[Round "9"]
[White "Tiviakov, Sergei"]
[Black "Perez Ponsa, Federico"]
[Result "0-1"]
[ECO "B17"]
[WhiteElo "2611"]
[BlackElo "2577"]
[PlyCount "108"]
[EventDate "2016.??.??"]
[EventCountry "CHI"]
[TimeControl "5400+30"]

1. e4 {[%emt 0:00:00]} c6 {[%emt 0:00:00]} 2. d4 {[%emt 0:00:00]} d5 {[%emt 0:
00:00]} 3. Nd2 {[%emt 0:00:00]} dxe4 {[%emt 0:00:00]} 4. Nxe4 {[%emt 0:00:00]}
Nd7 {[%emt 0:00:04]} 5. Nf3 {[%emt 0:00:04]} Ngf6 {[%emt 0:00:05]} 6. Ng3 {
[%emt 0:00:39]} e6 {[%emt 0:00:28]} 7. Bd3 {[%emt 0:00:39]} Be7 {[%emt 0:00:17]
} 8. O-O {[%emt 0:00:14]} O-O {[%emt 0:00:05]} 9. b3 {[%emt 0:02:56]} b6 {
[%emt 0:00:27]} 10. Bb2 {[%emt 0:00:18]} Bb7 {[%emt 0:00:10]} 11. c4 {[%emt 0:
02:24]} c5 {[%emt 0:00:11]} 12. Qe2 {[%emt 0:00:57]} Re8 {[%emt 0:02:01]} 13.
dxc5 {[%emt 0:07:21]} Bxc5 {[%emt 0:00:37]} 14. Ne5 {[%emt 0:13:54]} Nxe5 {
[%emt 0:07:59]} 15. Bxe5 {[%emt 0:00:21]} Qe7 {[%emt 0:00:29]} 16. Rad1 {
[%emt 0:11:49]} Rad8 {[%emt 0:02:28]} 17. h3 {[%emt 0:05:31]} Bd6 {[%emt 0:10:
58]} 18. Bc3 {[%emt 0:02:14]} Bb4 {[%emt 0:04:46]} 19. Bb2 {[%emt 0:01:24]} Ba3
{[%emt 0:02:25]} 20. Ba1 {[%emt 0:01:47]} e5 {[%emt 0:08:14]} 21. Ne4 {[%emt 0:
03:44]} Nd7 {[%emt 0:20:14]} 22. Bc2 {[%emt 0:01:55]} Nf8 {[%emt 0:02:13]} 23.
Nc3 {[%emt 0:10:49]} Ng6 {[%emt 0:04:57]} 24. Be4 {[%emt 0:09:47]} f5 {[%emt 0:
09:03]} 25. Rxd8 {[%emt 0:04:05]} Rxd8 {[%emt 0:00:13]} 26. Bd5+ {[%emt 0:00:
09]} Bxd5 {[%emt 0:03:16]} 27. Nxd5 {[%emt 0:00:05]} Qf7 {[%emt 0:01:36]} 28.
b4 {[%emt 0:05:01]} a5 {[%emt 0:07:57]} 29. bxa5 {[%emt 0:02:30]} bxa5 {
[%emt 0:00:05]} 30. Qe3 {[%emt 0:03:17]} Bf8 {[%emt 0:00:31]} 31. Qb6 {[%emt 0:
00:57]} Rc8 {[%emt 0:00:39]} 32. Qa6 {[%emt 0:00:49]} Qe8 {[%emt 0:02:19]} 33.
Rc1 {[%emt 0:04:27]} Ra8 {[%emt 0:03:42]} 34. Qb6 {[%emt 0:00:15]} Qf7 {
[%emt 0:00:25]} 35. Qb5 {[%emt 0:01:00]} e4 {[%emt 0:03:28]} 36. Nb6 {[%emt 0:
00:06]} Rd8 {[%emt 0:02:13]} 37. c5 {[%emt 0:00:05]} Nf4 {[%emt 0:00:42]} 38.
c6 {[%emt 0:04:05]} Qg6 {[%emt 0:00:01]} 39. g3 {[%emt 0:00:33]} Rd3 {[%emt 0:
03:12]} 40. Qc4+ {[%emt 0:02:03]} Kh8 41. Rc3 {[%emt 0:01:03]} Nxh3+ {[%emt 0:
01:20]} 42. Kh2 {[%emt 0:00:10]} Qh5 {[%emt 0:00:37]} 43. Rxd3 {[%emt 0:00:40]}
Nxf2+ {[%emt 0:00:16]} 44. Kg2 {[%emt 0:00:44]} Nxd3 {[%emt 0:00:18]} 45. c7 {
[%emt 0:00:59]} Qe2+ {[%emt 0:00:08]} 46. Kg1 {[%emt 0:00:37]} Qe1+ {[%emt 0:
00:25]} 47. Kg2 {[%emt 0:00:13]} Qe2+ {[%emt 0:00:00]} 48. Kg1 {[%emt 0:00:04]}
Qf2+ {[%emt 0:01:31]} 49. Kh1 {[%emt 0:00:01]} Ne1 {[%emt 0:00:37]} 50. Bxg7+ {
[%emt 0:00:42]} Kxg7 {[%emt 0:00:02]} 51. Qc3+ {[%emt 0:00:06]} Kg6 {[%emt 0:
00:09]} 52. Qc6+ {[%emt 0:00:35]} Kg5 {[%emt 0:00:07]} 53. Qc1+ {[%emt 0:00:07]
} e3 {[%emt 0:00:28]} 54. Qc6 {[%emt 0:00:12]} Nf3 {[%emt 0:00:49]} 0-1

[Event "II Zicosur 2016"]
[Site "Antofagasta"]
[Date "2016.01.10"]
[Round "9"]
[White "Garcia Cardenas, Pablo"]
[Black "Granda Zuniga, Julio E"]
[Result "0-1"]
[ECO "E38"]
[WhiteElo "2405"]
[BlackElo "2683"]
[PlyCount "96"]
[EventDate "2016.??.??"]
[EventCountry "CHI"]
[TimeControl "5400+30"]

1. d4 {[%emt 0:00:00]} Nf6 {[%emt 0:00:00]} 2. c4 {[%emt 0:00:00]} e6 {[%emt 0:
00:00]} 3. Nc3 {[%emt 0:00:00]} Bb4 {[%emt 0:00:00]} 4. Qc2 {[%emt 0:00:00]} c5
{[%emt 0:00:03]} 5. dxc5 {[%emt 0:00:00]} Bxc5 {[%emt 0:00:05]} 6. Nf3 {
[%emt 0:00:30]} O-O {[%emt 0:00:06]} 7. Bf4 {[%emt 0:00:07]} a6 {[%emt 0:00:43]
} 8. e3 {[%emt 0:02:19]} b6 {[%emt 0:05:31]} 9. Rd1 {[%emt 0:02:19]} Bb7 {
[%emt 0:00:26]} 10. Be2 {[%emt 0:01:35]} Be7 {[%emt 0:00:52]} 11. Bd6 {[%emt 0:
08:47]} Bxd6 {[%emt 0:00:23]} 12. Rxd6 {[%emt 0:00:03]} Qc7 {[%emt 0:00:08]}
13. Rd2 {[%emt 0:02:38]} Nc6 {[%emt 0:17:45]} 14. O-O {[%emt 0:03:56]} Rac8 {
[%emt 0:00:08]} 15. Ne4 {[%emt 0:23:52]} Nxe4 {[%emt 0:15:04]} 16. Qxe4 {
[%emt 0:00:03]} Ne7 {[%emt 0:00:23]} 17. Qe5 {[%emt 0:05:59]} d5 {[%emt 0:00:
07]} 18. cxd5 {[%emt 0:03:46]} Nxd5 {[%emt 0:00:07]} 19. Rfd1 {[%emt 0:00:17]}
b5 {[%emt 0:01:29]} 20. Bd3 {[%emt 0:04:45]} Qxe5 {[%emt 0:04:00]} 21. Nxe5 {
[%emt 0:00:04]} Rc7 {[%emt 0:00:07]} 22. Bb1 {[%emt 0:02:34]} f6 {[%emt 0:01:
46]} 23. Nd3 {[%emt 0:03:40]} Rfc8 {[%emt 0:00:21]} 24. a3 {[%emt 0:05:07]} Kf7
{[%emt 0:00:35]} 25. Ba2 {[%emt 0:03:48]} g5 {[%emt 0:03:31]} 26. h4 {[%emt 0:
02:54]} h6 {[%emt 0:05:57]} 27. hxg5 {[%emt 0:00:17]} hxg5 {[%emt 0:00:01]} 28.
e4 {[%emt 0:01:45]} Nb6 {[%emt 0:00:45]} 29. f3 {[%emt 0:06:58]} Ke7 {[%emt 0:
01:52]} 30. b4 {[%emt 0:02:01]} Rd8 {[%emt 0:04:38]} 31. Nc5 {[%emt 0:00:53]}
Rxd2 {[%emt 0:00:31]} 32. Rxd2 {[%emt 0:00:02]} Bc8 {[%emt 0:00:04]} 33. e5 {
[%emt 0:01:30]} fxe5 {[%emt 0:00:32]} 34. Re2 {[%emt 0:00:51]} Nd7 {[%emt 0:02:
29]} 35. Nxe6 {[%emt 0:02:55]} Rc1+ {[%emt 0:01:27]} 36. Kh2 {[%emt 0:00:36]}
Kf6 {[%emt 0:00:04]} 37. Rd2 {[%emt 0:02:21]} Rc3 {[%emt 0:01:42]} 38. Bd5 {
[%emt 0:02:21]} e4 {[%emt 0:02:48]} 39. Nxg5 {[%emt 0:03:44]} Kxg5 {[%emt 0:00:
17]} 40. Bxe4 {[%emt 0:00:01]} Nf6 {[%emt 0:01:09]} 41. Ba8 {[%emt 0:01:32]}
Rxa3 {[%emt 0:00:53]} 42. Rc2 {[%emt 0:00:07]} Bd7 {[%emt 0:02:43]} 43. Rc5+ {
[%emt 0:00:21]} Kf4 {[%emt 0:07:08]} 44. Bb7 {[%emt 0:00:55]} Ra2 {[%emt 0:01:
31]} 45. Rc3 {[%emt 0:00:21]} Ke5 {[%emt 0:00:30]} 46. Kg3 {[%emt 0:00:50]} Kd6
{[%emt 0:04:24]} 47. Rc1 {[%emt 0:02:26]} Nd5 {[%emt 0:01:16]} 48. Rd1 {
[%emt 0:00:03]} Bc6 {[%emt 0:00:11]} 0-1

[Event "II Zicosur 2016"]
[Site "Antofagasta"]
[Date "2016.01.10"]
[Round "9"]
[White "Delgado Ramirez, Neuris"]
[Black "Cheparinov, Ivan"]
[Result "1/2-1/2"]
[ECO "B51"]
[WhiteElo "2609"]
[BlackElo "2682"]
[PlyCount "28"]
[EventDate "2016.??.??"]
[EventCountry "CHI"]
[TimeControl "5400+30"]

1. e4 {[%emt 0:07:53]} c5 {[%emt 0:00:00]} 2. Nf3 {[%emt 0:00:05]} d6 {[%emt 0:
00:00]} 3. Bb5+ {[%emt 0:00:05]} Nd7 {[%emt 0:00:00]} 4. d4 {[%emt 0:00:33]}
cxd4 {[%emt 0:00:00]} 5. Qxd4 {[%emt 0:00:11]} a6 {[%emt 0:00:01]} 6. Bxd7+ {
[%emt 0:00:09]} Bxd7 {[%emt 0:00:05]} 7. c4 {[%emt 0:00:25]} b5 {[%emt 0:00:24]
} 8. Nc3 {[%emt 0:00:08]} e5 {[%emt 0:00:09]} 9. Qd3 {[%emt 0:00:14]} bxc4 {
[%emt 0:00:16]} 10. Qxc4 {[%emt 0:00:08]} Be6 {[%emt 0:00:41]} 11. Qc6+ {
[%emt 0:01:32]} Bd7 {[%emt 0:00:07]} 12. Qc4 {[%emt 0:00:05]} Be6 {[%emt 0:06:
21]} 13. Qc6+ {[%emt 0:01:53]} Bd7 {[%emt 0:00:04]} 14. Qc4 {[%emt 0:00:04]}
Be6 {[%emt 0:00:02]} 1/2-1/2

[Event "II Zicosur 2016"]
[Site "Antofagasta"]
[Date "2016.01.10"]
[Round "9"]
[White "Lopez Silva, Hugo"]
[Black "Cruz, Cristhian"]
[Result "0-1"]
[ECO "B48"]
[WhiteElo "2426"]
[BlackElo "2553"]
[PlyCount "99"]
[EventDate "2016.??.??"]
[EventCountry "CHI"]
[TimeControl "5400+30"]

1. e4 {[%emt 0:08:38]} c5 {[%emt 0:00:00]} 2. Nf3 {[%emt 0:00:40]} e6 {[%emt 0:
00:00]} 3. d4 {[%emt 0:00:07]} cxd4 {[%emt 0:00:00]} 4. Nxd4 {[%emt 0:00:08]}
Nc6 {[%emt 0:00:19]} 5. Nc3 {[%emt 0:00:18]} Qc7 {[%emt 0:00:34]} 6. Be3 {
[%emt 0:01:01]} a6 {[%emt 0:00:09]} 7. Qd2 {[%emt 0:04:08]} Nf6 {[%emt 0:01:27]
} 8. f3 {[%emt 0:00:04]} Be7 {[%emt 0:00:57]} 9. g4 {[%emt 0:01:28]} d6 {
[%emt 0:02:38]} 10. O-O-O {[%emt 0:02:04]} Ne5 {[%emt 0:03:16]} 11. g5 {
[%emt 0:14:38]} Nfd7 {[%emt 0:04:27]} 12. Kb1 {[%emt 0:02:21]} b5 {[%emt 0:11:
20]} 13. f4 {[%emt 0:07:35]} Nc4 {[%emt 0:17:52]} 14. Bxc4 {[%emt 0:01:02]}
Qxc4 {[%emt 0:09:09]} 15. f5 {[%emt 0:27:07]} b4 {[%emt 0:36:07]} 16. Na4 {
[%emt 0:05:46]} e5 {[%emt 0:00:38]} 17. b3 {[%emt 0:00:51]} Qc7 {[%emt 0:00:03]
} 18. Ne2 {[%emt 0:01:17]} a5 {[%emt 0:00:56]} 19. Ng3 {[%emt 0:02:31]} Bb7 {
[%emt 0:01:38]} 20. Qf2 {[%emt 0:05:27]} Bc6 {[%emt 0:01:19]} 21. Nb6 {[%emt 0:
01:28]} Nxb6 {[%emt 0:00:29]} 22. Bxb6 {[%emt 0:00:02]} Qb7 {[%emt 0:00:04]}
23. f6 {[%emt 0:00:15]} gxf6 {[%emt 0:00:23]} 24. gxf6 {[%emt 0:00:27]} Bf8 {
[%emt 0:00:03]} 25. Rhe1 {[%emt 0:09:36]} Ra6 {[%emt 0:06:06]} 26. Be3 {
[%emt 0:00:02]} a4 {[%emt 0:00:18]} 27. Qd2 {[%emt 0:00:21]} Rg8 {[%emt 0:02:
09]} 28. Bc5 {[%emt 0:03:11]} axb3 {[%emt 0:00:05]} 29. cxb3 {[%emt 0:00:05]}
Bd7 {[%emt 0:01:29]} 30. Bxb4 {[%emt 0:00:41]} Rg4 {[%emt 0:00:21]} 31. Kb2 {
[%emt 0:01:39]} Rf4 {[%emt 0:00:28]} 32. Nh5 {[%emt 0:00:29]} Qa7 {[%emt 0:00:
41]} 33. Ka1 {[%emt 0:00:24]} Rf2 {[%emt 0:00:28]} 34. Re2 {[%emt 0:00:17]}
Rxe2 35. Qxe2 Bg4 {[%emt 0:00:58]} 36. Qb5+ {[%emt 0:01:16]} Kd8 {[%emt 0:00:
30]} 37. Rd2 {[%emt 0:00:32]} Bxh5 {[%emt 0:00:11]} 38. Qxe5 {[%emt 0:00:10]}
Rxa2+ 39. Kb1 Rxd2 {[%emt 0:01:16]} 40. Ba5+ {[%emt 0:00:02]} Kd7 {[%emt 0:00:
33]} 41. Qb5+ {[%emt 0:00:01]} Kc8 {[%emt 0:00:14]} 42. Bxd2 {[%emt 0:02:20]}
Qg1+ {[%emt 0:00:48]} 43. Ka2 {[%emt 0:00:25]} Qf2 {[%emt 0:00:32]} 44. Qc6+ {
[%emt 0:00:33]} Kb8 {[%emt 0:00:23]} 45. Qb5+ {[%emt 0:00:31]} Kc7 {[%emt 0:00:
34]} 46. Qa5+ {[%emt 0:00:29]} Kd7 {[%emt 0:00:14]} 47. Qb5+ {[%emt 0:00:25]}
Ke6 {[%emt 0:00:29]} 48. Qd5+ {[%emt 0:00:36]} Kxf6 {[%emt 0:00:47]} 49. Kb1 {
[%emt 0:00:29]} Qg1+ {[%emt 0:00:25]} 50. Kb2 {[%emt 0:01:03] Ke5} 0-1

[Event "II Zicosur 2016"]
[Site "Antofagasta"]
[Date "2016.01.10"]
[Round "9"]
[White "Obregon, Andres Carlos"]
[Black "Principe, Alexander"]
[Result "1-0"]
[ECO "B90"]
[WhiteElo "2530"]
[BlackElo "2339"]
[PlyCount "73"]
[EventDate "2016.??.??"]
[EventCountry "CHI"]
[TimeControl "5400+30"]

1. e4 {[%emt 0:00:00]} c5 {[%emt 0:05:28]} 2. Nf3 {[%emt 0:00:00]} d6 {[%emt 0:
00:07]} 3. d4 {[%emt 0:00:00]} cxd4 {[%emt 0:00:05]} 4. Nxd4 {[%emt 0:00:00]}
Nf6 {[%emt 0:00:07]} 5. Nc3 {[%emt 0:00:00]} a6 {[%emt 0:00:09]} 6. Be3 {
[%emt 0:00:31]} e5 {[%emt 0:00:21]} 7. Nb3 {[%emt 0:00:13]} Be6 {[%emt 0:00:14]
} 8. Qd2 {[%emt 0:00:14]} Be7 {[%emt 0:00:17]} 9. O-O-O {[%emt 0:00:18]} O-O {
[%emt 0:01:13]} 10. f4 {[%emt 0:01:06]} Ng4 {[%emt 0:02:47]} 11. g3 {[%emt 0:
01:11]} Nd7 {[%emt 0:17:26]} 12. Kb1 {[%emt 0:07:41]} b5 {[%emt 0:12:53]} 13.
Bg1 {[%emt 0:05:45]} Rc8 {[%emt 0:01:14]} 14. Nd5 {[%emt 0:01:08]} Bxd5 {
[%emt 0:01:54]} 15. exd5 {[%emt 0:00:18]} f5 {[%emt 0:06:35]} 16. Na5 {[%emt 0:
21:03]} Qe8 {[%emt 0:03:34]} 17. Bd3 {[%emt 0:05:07]} Bd8 {[%emt 0:23:45]} 18.
Nb7 {[%emt 0:16:38]} Bc7 {[%emt 0:07:10]} 19. h3 {[%emt 0:04:52]} Nh6 {[%emt 0:
02:41]} 20. Be3 {[%emt 0:01:17]} e4 {[%emt 0:01:54]} 21. Be2 {[%emt 0:00:23]}
Qe7 {[%emt 0:00:11]} 22. Na5 {[%emt 0:03:58]} Bb6 {[%emt 0:00:52]} 23. Nc6 {
[%emt 0:00:56]} Qf7 {[%emt 0:00:06]} 24. c4 {[%emt 0:00:12]} Bxe3 {[%emt 0:04:
48]} 25. Qxe3 {[%emt 0:00:08]} bxc4 {[%emt 0:00:20]} 26. Bxc4 {[%emt 0:00:21]}
Nb8 {[%emt 0:00:35]} 27. Bb3 {[%emt 0:02:24]} Kh8 {[%emt 0:00:45]} 28. Nd4 {
[%emt 0:02:33]} Nd7 {[%emt 0:01:03]} 29. Ne6 {[%emt 0:00:17]} Rfe8 {[%emt 0:00:
06]} 30. Rc1 {[%emt 0:00:09]} Ng8 {[%emt 0:01:31]} 31. Rc6 {[%emt 0:01:58]} Qe7
{[%emt 0:01:29]} 32. Rhc1 {[%emt 0:00:11]} Nc5 {[%emt 0:02:21]} 33. Nxc5 {
[%emt 0:01:50]} Rxc6 {[%emt 0:00:38]} 34. dxc6 {[%emt 0:00:07]} dxc5 {[%emt 0:
00:04]} 35. Qxc5 {[%emt 0:00:49]} Qxc5 {[%emt 0:00:20]} 36. Rxc5 {[%emt 0:00:
10]} e3 {[%emt 0:00:03]} 37. Bc4 {[%emt 0:00:45]} 1-0

[Event "II Zicosur 2016"]
[Site "Antofagasta"]
[Date "2016.01.10"]
[Round "9"]
[White "Pichot, Alan"]
[Black "Gemy, Jose Daniel"]
[Result "1-0"]
[ECO "C65"]
[WhiteElo "2517"]
[BlackElo "2407"]
[PlyCount "71"]
[EventDate "2016.??.??"]
[EventCountry "CHI"]
[TimeControl "5400+30"]

1. e4 e5 {[%emt 0:00:00]} 2. Nf3 {[%emt 0:00:00]} Nc6 {[%emt 0:00:00]} 3. Bb5 {
[%emt 0:00:00]} Nf6 {[%emt 0:00:05]} 4. d3 {[%emt 0:00:00]} Bc5 {[%emt 0:00:28]
} 5. c3 {[%emt 0:00:03]} O-O {[%emt 0:00:29]} 6. O-O {[%emt 0:00:09]} d6 {
[%emt 0:00:08]} 7. h3 {[%emt 0:03:27]} Ne7 {[%emt 0:00:09]} 8. d4 {[%emt 0:00:
37]} Bb6 9. Re1 {[%emt 0:00:36]} c6 {[%emt 0:00:35]} 10. Ba4 {[%emt 0:11:49]}
Ng6 {[%emt 0:00:57]} 11. Nbd2 {[%emt 0:00:33]} Re8 {[%emt 0:00:49]} 12. Bc2 {
[%emt 0:03:11]} h6 {[%emt 0:14:46]} 13. a4 {[%emt 0:05:19]} Be6 {[%emt 0:07:14]
} 14. Nf1 {[%emt 0:04:11]} a5 {[%emt 0:03:47]} 15. Ng3 {[%emt 0:03:01]} Qc7 {
[%emt 0:10:21]} 16. b3 {[%emt 0:07:11]} Rad8 {[%emt 0:02:15]} 17. Be3 {[%emt 0:
16:43]} d5 {[%emt 0:11:10]} 18. Nxe5 {[%emt 0:01:54]} Nxe5 {[%emt 0:03:04]} 19.
Bf4 {[%emt 0:00:18]} Nfd7 {[%emt 0:08:04]} 20. dxe5 {[%emt 0:04:41]} Nxe5 {
[%emt 0:14:56]} 21. Qh5 {[%emt 0:00:34]} f6 {[%emt 0:19:43]} 22. exd5 {[%emt 0:
00:47]} Bxd5 {[%emt 0:00:34]} 23. Qf5 {[%emt 0:08:41]} Qf7 {[%emt 0:00:04]} 24.
Qh7+ {[%emt 0:06:23]} Kf8 {[%emt 0:00:01]} 25. c4 {[%emt 0:03:17]} Be6 {
[%emt 0:00:51]} 26. Bxe5 {[%emt 0:03:57]} fxe5 {[%emt 0:00:08]} 27. Bg6 {
[%emt 0:00:04]} Qxf2+ {[%emt 0:02:17]} 28. Kh2 {[%emt 0:00:20]} Bg8 {[%emt 0:
00:12]} 29. Qh8 {[%emt 0:00:02]} Qf6 {[%emt 0:00:51]} 30. Rf1 {[%emt 0:00:36]}
Bf2 {[%emt 0:00:24]} 31. Rxf2 {[%emt 0:02:16]} Qxf2 {[%emt 0:00:16]} 32. Bxe8 {
[%emt 0:00:13]} Rxe8 {[%emt 0:00:35]} 33. Rf1 {[%emt 0:00:06]} Qxf1 {[%emt 0:
00:14]} 34. Nxf1 {[%emt 0:00:05]} Kf7 {[%emt 0:00:37]} 35. Ng3 {[%emt 0:00:58]}
Kg6 {[%emt 0:00:54]} 36. Nh5 {[%emt 0:00:15]} 1-0

[Event "II Zicosur 2016"]
[Site "Antofagasta"]
[Date "2016.01.10"]
[Round "9"]
[White "El Debs, Felipe de Cresce"]
[Black "Belmonte, Diego Mariano"]
[Result "1/2-1/2"]
[ECO "E46"]
[WhiteElo "2514"]
[BlackElo "2258"]
[PlyCount "125"]
[EventDate "2016.??.??"]
[EventCountry "CHI"]
[TimeControl "5400+30"]

1. d4 {[%emt 0:00:00]} Nf6 {[%emt 0:00:46]} 2. c4 {[%emt 0:00:00]} e6 {[%emt 0:
00:48]} 3. Nc3 {[%emt 0:00:00]} Bb4 {[%emt 0:00:40]} 4. e3 {[%emt 0:00:05]} O-O
{[%emt 0:01:10]} 5. Nge2 {[%emt 0:00:37]} Re8 {[%emt 0:01:41]} 6. a3 {[%emt 0:
00:15]} Bf8 {[%emt 0:00:42]} 7. Ng3 {[%emt 0:00:49]} d5 {[%emt 0:01:41]} 8. Be2
{[%emt 0:00:28]} b6 {[%emt 0:01:36]} 9. O-O {[%emt 0:01:14]} Bb7 {[%emt 0:00:
22]} 10. b4 {[%emt 0:07:21]} Nbd7 {[%emt 0:01:36]} 11. Qb3 {[%emt 0:05:20]} c6
{[%emt 0:01:31]} 12. Bb2 {[%emt 0:01:40]} Qc7 {[%emt 0:05:48]} 13. Rac1 {
[%emt 0:04:45]} Rac8 {[%emt 0:13:07]} 14. Rfd1 Qb8 {[%emt 0:00:52]} 15. e4 {
[%emt 0:16:50]} dxe4 {[%emt 0:11:17]} 16. Ncxe4 {[%emt 0:00:19]} Rcd8 {[%emt 0:
07:48]} 17. c5 {[%emt 0:02:46]} Ba8 {[%emt 0:08:39]} 18. Qc2 {[%emt 0:07:19]}
Be7 {[%emt 0:02:40]} 19. Bd3 {[%emt 0:02:08]} h6 {[%emt 0:00:56]} 20. Qe2 {
[%emt 0:00:32]} Nd5 {[%emt 0:03:36]} 21. Bb1 {[%emt 0:01:16]} Nf8 {[%emt 0:03:
05]} 22. Re1 {[%emt 0:04:28]} Nf4 {[%emt 0:02:40]} 23. Qc2 {[%emt 0:00:17]} Nd5
{[%emt 0:01:21]} 24. Rcd1 {[%emt 0:00:39]} Nf4 {[%emt 0:00:43]} 25. Bc1 {
[%emt 0:00:50]} Nd5 {[%emt 0:00:39]} 26. Nh5 {[%emt 0:01:02]} f5 {[%emt 0:05:
59]} 27. Nc3 {[%emt 0:03:55]} Rd7 {[%emt 0:07:57]} 28. Nxd5 {[%emt 0:00:24]}
cxd5 {[%emt 0:01:38]} 29. c6 {[%emt 0:01:16]} Rc8 {[%emt 0:02:20]} 30. b5 {
[%emt 0:00:15]} Bd6 {[%emt 0:01:29]} 31. g3 {[%emt 0:00:25]} Rf7 {[%emt 0:01:
13]} 32. Bf4 {[%emt 0:01:47]} g5 {[%emt 0:00:48]} 33. Be5 {[%emt 0:00:55]} Ng6
{[%emt 0:01:04]} 34. Qb2 {[%emt 0:01:25]} Rcf8 {[%emt 0:02:34]} 35. Re2 {
[%emt 0:01:28]} Nxe5 {[%emt 0:00:49]} 36. dxe5 {[%emt 0:00:05]} Be7 {[%emt 0:
00:15]} 37. a4 {[%emt 0:00:34]} a5 {[%emt 0:00:38]} 38. Rde1 {[%emt 0:01:08]}
Qc7 {[%emt 0:01:32]} 39. Nf6+ {[%emt 0:00:16]} Kh8 {[%emt 0:00:50]} 40. h3 {
[%emt 0:02:14]} Bc5 {[%emt 0:00:36]} 41. g4 {[%emt 0:00:58]} Rxf6 {[%emt 0:00:
13]} 42. gxf5 {[%emt 0:00:53]} Rxf5 {[%emt 0:02:19]} 43. Bxf5 {[%emt 0:01:19]}
Rxf5 {[%emt 0:00:03]} 44. Rd1 {[%emt 0:03:21]} Bxc6 {[%emt 0:00:42]} 45. bxc6 {
[%emt 0:00:08]} Qxc6 {[%emt 0:00:08]} 46. Qc2 {[%emt 0:02:19]} Kg7 {[%emt 0:00:
24]} 47. Rd4 {[%emt 0:00:49]} Qd7 {[%emt 0:00:45]} 48. Rg4 {[%emt 0:00:24]} Qf7
{[%emt 0:00:53]} 49. Kg2 {[%emt 0:00:29]} Qg6 {[%emt 0:01:11]} 50. Qb3 {
[%emt 0:01:28]} h5 {[%emt 0:01:09]} 51. Rg3 {[%emt 0:00:10]} Rf4 {[%emt 0:00:
17]} 52. Rf3 {[%emt 0:01:25]} Qf5 {[%emt 0:00:34]} 53. Rxf4 {[%emt 0:00:25]}
Qxf4 {[%emt 0:00:15]} 54. Qb5 {[%emt 0:00:20]} Qf7 {[%emt 0:00:55]} 55. f3 {
[%emt 0:00:17]} h4 {[%emt 0:00:25]} 56. Qc6 {[%emt 0:01:01]} Qf4 {[%emt 0:01:
02]} 57. Qd7+ {[%emt 0:00:11]} Kf8 {[%emt 0:00:38]} 58. Qd8+ {[%emt 0:05:56]}
Kf7 {[%emt 0:00:27]} 59. Qd7+ {[%emt 0:00:02]} Kf8 {[%emt 0:00:18]} 60. Qd8+ {
[%emt 0:00:06]} Kf7 {[%emt 0:00:29]} 61. Qd7+ Be7 62. Rc2 Qg3+ 63. Kf1 {
[%emt 0:01:34]} 1/2-1/2